bitfinex/quotes_BTCUSD_20260310
["timestamp","ask_amount","ask_price","bid_price","bid_amount"]
[1773186032204,0.07550965,69941.0,69925.0,0.07150503]
[1773186032602,0.07550965,69941.0,69927.0,0.07150313]
[1773186033007,0.00064488,69942.0,69927.0,0.07150313]
[1773186033158,0.00064488,69942.0,69930.0,0.05452477]
[1773186033359,0.00064488,69942.0,69931.0,0.07710427]
[1773186036130,0.00144,69941.0,69932.0,0.07710427]
[1773186036721,0.00064488,69942.0,69932.0,0.07710427]
[1773186036925,0.00144,69940.0,69932.0,0.07710427]
[1773186037447,0.00144,69939.0,69932.0,0.07710427]
[1773186037790,0.00064488,69942.0,69932.0,0.07710427]
[1773186038009,0.00144,69941.0,69933.0,0.14860127]
[1773186038208,0.00144,69941.0,69933.0,0.071497]
[1773186039292,0.00144,69941.0,69934.0,0.07710427]
[1773186039424,0.07550965,69940.0,69920.0,0.07710427]
[1773186040280,0.07550965,69940.0,69931.0,0.0002]
[1773186043308,0.14700052,69939.0,69931.0,0.0002]
[1773186043521,0.07550965,69938.0,69931.0,0.0002]
[1773186045398,0.07149291,69937.0,69924.0,0.0002]
[1773186045640,0.07149291,69937.0,69917.0,0.0006]
[1773186045641,0.07550965,69936.0,69917.0,0.07211336]
[1773186045842,0.07550965,69936.0,69918.0,0.07710427]
[1773186046000,0.00144,69935.0,69918.0,0.07710427]
[1773186048158,0.07149598,69934.0,69918.0,0.07710427]
[1773186048359,0.2877553,69934.0,69918.0,0.07710427]
[1773186048903,0.21396009,69934.0,69918.0,0.07710427]
[1773186049106,0.14246411,69933.0,69918.0,0.07710427]
[1773186049310,0.07149598,69934.0,69918.0,0.07710427]
[1773186049552,0.07623289,69933.0,69918.0,0.07710427]
[1773186049811,0.07623289,69933.0,69918.0,0.07730427]
[1773186050018,0.07623289,69931.0,69918.0,0.0002]
[1773186052363,0.07149825,69932.0,69919.0,0.07430655]
[1773186052712,0.21396155,69933.0,69919.0,0.07430655]
[1773186052907,0.14246411,69932.0,69919.0,0.07430655]
[1773186053262,0.07149744,69933.0,69919.0,0.07430655]
[1773186054195,0.21396155,69933.0,69919.0,0.07430655]
[1773186055240,0.21396155,69933.0,69919.0,0.14581774]
[1773186055395,0.14246411,69933.0,69920.0,0.07430655]
[1773186055782,0.18523181,69934.0,69920.0,0.07430655]
[1773186056007,0.07623289,69933.0,69920.0,0.07430655]
[1773186056216,0.14773091,69932.0,69918.0,0.0002]
[1773186057537,0.14773091,69932.0,69919.0,0.0002]
[1773186058467,0.07623289,69932.0,69919.0,0.0002]
[1773186060422,0.07623289,69932.0,69919.0,0.07450655]
[1773186060572,0.14276591,69935.0,69921.0,0.07430655]
[1773186060772,0.11373552,69940.0,69926.0,0.07430655]
[1773186060983,0.00144,69938.0,69931.0,0.07430655]
[1773186061595,0.07623289,69937.0,69920.0,0.07430655]
[1773186061798,0.07623289,69937.0,69921.0,0.07430655]
[1773186061997,0.00144,69938.0,69927.0,0.05455751]
[1773186062282,0.00144,69938.0,69928.0,0.07430655]
[1773186062482,0.00144,69938.0,69928.0,0.07150143]
[1773186063049,0.00144,69938.0,69928.0,0.14580798]
[1773186065506,0.00144,69938.0,69929.0,0.07430655]
[1773186065929,0.00166001,69938.0,69929.0,0.07430655]
[1773186067187,0.00022001,69943.0,69931.0,0.07430655]
[1773186067386,0.00022001,69943.0,69933.0,0.07430655]
[1773186068787,0.0004,69952.0,69934.0,0.07430655]
[1773186068983,0.0004,69952.0,69942.0,0.07430655]
[1773186069378,0.0004,69952.0,69944.0,0.07430655]
[1773186071435,0.0004,69952.0,69944.0,0.14564014]
[1773186074715,0.00062001,69952.0,69944.0,0.14564014]
[1773186075822,0.00062001,69952.0,69941.0,0.14579457]
[1773186078367,0.00022001,69957.0,69941.0,0.07148802]
[1773186078540,0.00022001,69957.0,69946.0,0.05455751]
[1773186078850,0.00022001,69957.0,69942.0,0.07430655]
[1773186079451,0.08034847,69956.0,69942.0,0.07430655]
[1773186079669,0.08034847,69956.0,69943.0,0.07148678]
[1773186088239,0.00584001,69956.0,69943.0,0.07148678]
[1773186088536,0.00584001,69956.0,69944.0,0.07086536]
[1773186089796,0.00144,69955.0,69944.0,0.07086536]
[1773186090202,0.00144,69954.0,69944.0,0.14235063]
[1773186094227,0.07291579,69954.0,69938.0,0.00144]
[1773186094433,0.07291579,69954.0,69938.0,0.072931]
[1773186094434,0.07450846,69953.0,69938.0,0.072931]
[1773186095711,0.07450846,69953.0,69938.0,0.073931]
[1773186096148,0.07450846,69953.0,69938.0,0.072931]
[1773186096348,0.00166001,69954.0,69938.0,0.072931]
[1773186096649,0.07450846,69952.0,69938.0,0.071491]
[1773186096863,0.07313565,69954.0,69941.0,0.07086536]
[1773186096864,0.14410655,69954.0,69941.0,0.07086536]
[1773186097101,0.00166001,69954.0,69944.0,0.05455751]
[1773186097695,0.00166001,69954.0,69943.0,0.07086536]
[1773186098664,0.07450846,69953.0,69940.0,0.05455751]
[1773186098868,0.07450846,69953.0,69936.0,0.07086536]
[1773186098869,0.07450846,69953.0,69936.0,0.0714932]
[1773186099074,0.11373552,69952.0,69935.0,0.0004]
[1773186099272,0.07450846,69951.0,69935.0,0.0004]
[1773186099530,0.07450846,69949.0,69935.0,0.07189461]
[1773186099727,0.07450846,69947.0,69935.0,0.07189461]
[1773186100323,0.11373552,69940.0,69920.0,0.090069]
[1773186100523,0.07450846,69933.0,69919.0,0.0002]
[1773186100722,0.07149189,69938.0,69919.0,0.07171099]
[1773186100723,0.07594846,69932.0,69919.0,0.07171099]
[1773186100878,0.00144,69932.0,69919.0,0.14257635]
[1773186101073,0.00144,69932.0,69928.0,0.0002]
[1773186101333,0.14244654,69936.0,69928.0,0.0002]
[1773186101551,0.07450846,69930.0,69928.0,0.0002]
[1773186101718,0.00144,69929.0,69921.0,0.0002]
[1773186101924,0.00144,69928.0,69921.0,0.0002]
[1773186107651,0.06943323,69928.0,69921.0,0.0002]
[1773186108885,0.06943323,69928.0,69915.0,0.0001803]
[1773186108886,0.0729423,69928.0,69915.0,0.0001803]
[1773186109086,0.0729423,69928.0,69910.0,0.0002]
[1773186109087,0.06799323,69924.0,69910.0,0.0002]
[1773186109297,0.13949949,69924.0,69910.0,0.06874436]
[1773186109635,0.07150131,69929.0,69911.0,0.07439295]
[1773186109807,0.00144,69928.0,69911.0,0.07439295]
[1773186110186,0.00144,69927.0,69911.0,0.07439295]
[1773186110520,0.07215078,69927.0,69911.0,0.07439295]
[1773186110710,0.00144,69926.0,69911.0,0.07439295]
[1773186110908,0.07215078,69926.0,69911.0,0.07439295]
[1773186111805,0.07071078,69925.0,69911.0,0.14591243]
[1773186113385,0.07071078,69925.0,69910.0,0.0002]
[1773186113386,0.07150536,69925.0,69910.0,0.0002]
[1773186113588,0.07071078,69924.0,69910.0,0.0002]
[1773186113834,0.00144,69926.0,69911.0,0.07419295]
[1773186113960,0.0729444,69926.0,69911.0,0.07419295]
[1773186114365,0.14365518,69926.0,69911.0,0.07419295]
[1773186115391,0.14365518,69926.0,69911.0,0.14591243]
[1773186115795,0.14365518,69926.0,69912.0,0.07419295]
[1773186115796,0.00144,69926.0,69912.0,0.07419295]
[1773186116298,0.1421967,69937.0,69912.0,0.07419295]
[1773186116677,0.07215078,69936.0,69920.0,0.05453184]
[1773186116857,0.00144,69936.0,69921.0,0.07419295]
[1773186117827,0.00055318,69940.0,69923.0,0.07419295]
[1773186117828,0.00144,69935.0,69923.0,0.07419295]
[1773186118052,0.00055318,69940.0,69923.0,0.07419295]
[1773186118290,0.00144,69939.0,69923.0,0.07419295]
[1773186118490,0.00144,69938.0,69923.0,0.07419295]
[1773186118909,0.00055318,69940.0,69923.0,0.07419295]
[1773186119102,0.00144,69937.0,69923.0,0.07419295]
[1773186119295,0.00144,69939.0,69925.0,0.07419295]
[1773186119970,0.00144,69939.0,69927.0,0.07419295]
[1773186121198,0.00199318,69940.0,69930.0,0.07419295]
[1773186121605,0.00144,69940.0,69930.0,0.07463575]
[1773186122013,0.00144,69940.0,69932.0,0.07419295]
[1773186122958,0.00022001,69935.0,69932.0,0.07419295]
[1773186123302,0.00144,69940.0,69932.0,0.07419295]
[1773186123974,0.00144,69940.0,69932.0,0.14569048]
[1773186124324,0.00144,69940.0,69933.0,0.07419295]
[1773186125048,0.00144,69940.0,69933.0,0.07441345]
[1773186126032,0.00144,69940.0,69933.0,0.14590949]
[1773186126435,0.00144,69940.0,69934.0,0.07419295]
[1773186127038,0.00144,69940.0,69934.0,0.07441345]
[1773186128000,0.00144,69940.0,69935.0,0.07149495]
[1773186128201,0.00144,69946.0,69936.0,0.07419295]
[1773186128402,0.00022001,69949.0,69937.0,0.07419295]
[1773186128805,0.00144,69948.0,69937.0,0.07419295]
[1773186129017,0.00144,69948.0,69937.0,0.07441345]
[1773186129236,0.00022001,69949.0,69937.0,0.07441345]
[1773186129415,0.00144,69948.0,69937.0,0.07441345]
[1773186129815,0.07071078,69947.0,69931.0,0.0002223]
[1773186130022,0.07148371,69946.0,69931.0,0.0002223]
[1773186130219,0.00144,69948.0,69931.0,0.07172075]
[1773186130444,0.00166001,69948.0,69932.0,0.07419295]
[1773186130647,0.07071078,69947.0,69932.0,0.07419295]
[1773186130871,0.07071078,69947.0,69937.0,0.001]
[1773186131043,0.07071078,69947.0,69932.0,0.07419295]
[1773186132202,0.07071078,69947.0,69932.0,0.14569014]
[1773186133025,0.14319352,69947.0,69933.0,0.07419295]
[1773186133243,0.14219352,69947.0,69933.0,0.07419295]
[1773186134084,0.14319352,69947.0,69935.0,0.0004]
[1773186135175,0.14219352,69947.0,69935.0,0.0004]
[1773186135551,0.07071078,69946.0,69935.0,0.0004]
[1773186135757,0.07071078,69946.0,69931.0,0.0002223]
[1773186136181,0.07071078,69944.0,69931.0,0.0002223]
[1773186137360,0.07071078,69943.0,69931.0,0.0002223]
[1773186137580,0.07215078,69942.0,69931.0,0.0002223]
[1773186141409,0.07215078,69942.0,69928.0,0.00562]
[1773186141410,0.07314352,69940.0,69928.0,0.00562]
[1773186141559,0.07148882,69941.0,69928.0,0.00599288]
[1773186142870,0.07148882,69941.0,69929.0,0.07115151]
[1773186143065,0.001,69941.0,69929.0,0.07115151]
[1773186143269,0.07292882,69942.0,69929.0,0.07115151]
[1773186145182,0.001,69941.0,69929.0,0.07115151]
[1773186145383,0.07292882,69942.0,69929.0,0.07115151]
[1773186145588,0.07314352,69939.0,69928.0,0.00599288]
[1773186146221,0.07314352,69939.0,69929.0,0.0002]
[1773186147853,0.14563455,69939.0,69929.0,0.0002]
[1773186148253,0.14463455,69939.0,69929.0,0.0002]
[1773186148457,0.14563455,69939.0,69929.0,0.0002]
[1773186149486,0.07314352,69938.0,69929.0,0.0002]
[1773186151618,0.07414352,69938.0,69929.0,0.0002]
[1773186157941,0.001,69938.0,69929.0,0.0002]
[1773186159004,0.0714911,69939.0,69929.0,0.0002]
[1773186161537,0.0724911,69939.0,69929.0,0.0002]
[1773186161714,0.0714911,69939.0,69929.0,0.0002]
[1773186161924,0.0724911,69939.0,69929.0,0.0002]
[1773186163479,0.14563462,69939.0,69929.0,0.0002]
[1773186166592,0.14463462,69939.0,69929.0,0.0002]
[1773186166938,0.14563462,69939.0,69929.0,0.0002]
[1773186167142,0.14463462,69939.0,69929.0,0.0002]
[1773186167994,0.14563462,69939.0,69929.0,0.0002]
[1773186169304,0.0724911,69939.0,69925.0,0.00023]
[1773186169526,0.06836583,69938.0,69925.0,0.00011196]
[1773186170698,0.06836583,69937.0,69925.0,0.00011196]
[1773186170901,0.06836583,69935.0,69925.0,0.00011196]
[1773186171145,0.06836583,69935.0,69929.0,0.0002]
[1773186171699,0.17153551,69952.0,69930.0,0.07002202]
[1773186171833,0.14006163,69954.0,69931.0,0.07002202]
[1773186172030,0.00022001,69946.0,69931.0,0.07002202]
[1773186172238,0.00144,69945.0,69931.0,0.07002202]
[1773186172639,0.00144,69945.0,69931.0,0.11347145]
[1773186172863,0.00144,69945.0,69934.0,0.07002202]
[1773186173287,0.001,69935.0,69934.0,0.07002202]
[1773186173488,0.00144,69945.0,69934.0,0.07002202]
[1773186174803,0.00144,69945.0,69934.0,0.07102202]
[1773186174981,0.00144,69945.0,69936.0,0.07002202]
[1773186176790,0.00144,69945.0,69936.0,0.07102202]
[1773186176998,0.00144,69945.0,69937.0,0.07149291]
[1773186177201,0.00144,69945.0,69938.0,0.07002202]
[1773186178770,0.00022001,69946.0,69938.0,0.07002202]
[1773186178908,0.00144,69944.0,69938.0,0.07002202]
[1773186179119,0.00022001,69945.0,69940.0,0.07002202]
[1773186179595,0.00166001,69945.0,69940.0,0.07002202]
[1773186179802,0.00022001,69945.0,69940.0,0.07002202]
[1773186180162,0.00166001,69945.0,69940.0,0.07002202]
[1773186180657,0.00022001,69945.0,69940.0,0.07102202]
[1773186180862,0.00022001,69945.0,69940.0,0.07002202]
[1773186181072,0.00060003,69946.0,69941.0,0.07002202]
[1773186186134,0.00060003,69946.0,69941.0,0.07148813]
[1773186186135,0.00082004,69946.0,69941.0,0.07148813]
[1773186186337,0.00082004,69946.0,69941.0,0.14151015]
[1773186186791,0.00047021,69952.0,69937.0,0.07149272]
[1773186186792,0.00144,69948.0,69937.0,0.07002202]
[1773186186993,0.00047021,69952.0,69937.0,0.07002202]
[1773186187192,0.00144,69951.0,69941.0,0.07002202]
[1773186188960,0.00144,69957.0,69943.0,0.07002202]
[1773186189145,0.00144,69957.0,69949.0,0.07002202]
[1773186190302,0.00181288,69957.0,69949.0,0.07002202]
[1773186190873,0.00181288,69957.0,69930.0,0.07150007]
[1773186190874,0.07147656,69953.0,69930.0,0.07150007]
[1773186191097,0.06836583,69952.0,69931.0,0.21153838]
[1773186191462,0.06836583,69952.0,69933.0,0.07002202]
[1773186192358,0.06726583,69952.0,69949.0,0.001]
[1773186192499,0.06726583,69952.0,69933.0,0.07002202]
[1773186192697,0.06726583,69952.0,69941.0,0.0002]
[1773186193103,0.07147774,69952.0,69941.0,0.0002]
[1773186193298,0.06836583,69951.0,69941.0,0.0002]
[1773186193594,0.06836583,69951.0,69930.0,0.05455856]
[1773186193595,0.06980583,69950.0,69924.0,0.07002202]
[1773186193790,0.06980583,69950.0,69927.0,0.07170278]
[1773186195382,0.06836583,69948.0,69927.0,0.07170278]
[1773186196068,0.06836583,69948.0,69930.0,0.05455856]
[1773186196374,0.06836583,69948.0,69928.0,0.07712207]
[1773186196375,0.06836583,69948.0,69935.0,0.0004]
[1773186197420,0.06936583,69948.0,69935.0,0.0004]
[1773186197778,0.06836583,69946.0,69935.0,0.0004]
[1773186199816,0.07148473,69945.0,69935.0,0.0004]
[1773186200017,0.00144,69944.0,69935.0,0.0004]
[1773186200537,0.00144,69944.0,69935.0,0.0006]
[1773186200982,0.00144,69943.0,69936.0,0.07678443]
[1773186203129,0.00144,69943.0,69935.0,0.0006]
[1773186208565,0.00144,69942.0,69936.0,0.07678443]
[1773186210713,0.00022001,69946.0,69936.0,0.07678443]
[1773186210934,0.00144,69945.0,69936.0,0.07678443]
[1773186211489,0.00022001,69946.0,69936.0,0.07678443]
[1773186211833,0.00144,69945.0,69936.0,0.07678443]
[1773186212043,0.00144,69944.0,69936.0,0.07678443]
[1773186212246,0.00022001,69953.0,69938.0,0.07678443]
[1773186212448,0.00144,69952.0,69938.0,0.07678443]
[1773186212646,0.00144,69951.0,69941.0,0.07678443]
[1773186213826,0.00144,69951.0,69943.0,0.07678443]
[1773186215063,0.00144,69951.0,69943.0,0.07778443]
[1773186215238,0.00144,69951.0,69943.0,0.07678443]
[1773186215649,0.00144,69951.0,69943.0,0.07778443]
[1773186216243,0.00144,69951.0,69945.0,0.07678443]
[1773186217683,0.00144,69951.0,69945.0,0.07778443]
[1773186218688,0.00144,69951.0,69947.0,0.07678443]
[1773186219564,0.00144,69952.0,69947.0,0.07678443]
[1773186219985,0.00022001,69953.0,69947.0,0.07678443]
[1773186220190,0.00144,69952.0,69947.0,0.07678443]
[1773186220387,0.00144,69952.0,69947.0,0.07557369]
[1773186220723,0.00022001,69953.0,69948.0,0.07148167]
[1773186220916,0.00166001,69953.0,69949.0,0.07678443]
[1773186221064,0.00022001,69955.0,69949.0,0.07678443]
[1773186221268,0.00022001,69958.0,69949.0,0.07678443]
[1773186221269,0.00084711,69956.0,69949.0,0.07678443]
[1773186221470,0.00144,69956.0,69949.0,0.07678443]
[1773186221672,0.00043691,69964.0,69949.0,0.07678443]
[1773186221673,0.00144,69958.0,69949.0,0.07678443]
[1773186221925,0.00153058,69958.0,69949.0,0.07678443]
[1773186222125,9.058e-05,69958.0,69949.0,0.07678443]
[1773186222284,0.00153058,69958.0,69949.0,0.07678443]
[1773186222704,0.00153058,69958.0,69950.0,0.07147962]
[1773186222705,9.058e-05,69958.0,69950.0,0.07147962]
[1773186222906,9.058e-05,69958.0,69951.0,0.07678443]
[1773186224993,9.058e-05,69958.0,69953.0,0.07678443]
[1773186225404,9.058e-05,69958.0,69953.0,0.07663312]
[1773186226044,0.09015958,69958.0,69953.0,0.07663312]
[1773186226255,0.09037959,69958.0,69953.0,0.07663312]
[1773186227059,0.09037959,69958.0,69955.0,0.07678443]
[1773186227644,0.00144,69960.0,69955.0,0.07678443]
[1773186227645,0.00088003,69960.0,69955.0,0.07678443]
[1773186229231,0.00088003,69960.0,69957.0,0.07024353]
[1773186230007,0.00088003,69960.0,69956.0,0.07147349]
[1773186230648,0.00088003,69960.0,69949.0,0.07147962]
[1773186230848,0.00088003,69960.0,69949.0,0.0718525]
[1773186231483,0.00088003,69960.0,69949.0,0.14262076]
[1773186233099,0.00088003,69960.0,69949.0,0.14282076]
[1773186233422,0.00110004,69960.0,69949.0,0.0720525]
[1773186233599,0.00110004,69960.0,69950.0,0.07076826]
[1773186234836,0.00110004,69960.0,69950.0,0.12528101]
[1773186236219,0.00110004,69960.0,69951.0,0.0714786]
[1773186236429,0.00110004,69960.0,69952.0,0.07076826]
[1773186237130,0.00144,69960.0,69952.0,0.07076826]
[1773186239106,0.00144,69960.0,69953.0,0.14224482]
[1773186240765,0.00144,69960.0,69953.0,0.07076826]
[1773186240972,0.00144,69960.0,69953.0,0.14224428]
[1773186241506,0.00166001,69960.0,69953.0,0.14224428]
[1773186242948,0.00166001,69960.0,69953.0,0.07147602]
[1773186243245,0.00022001,69962.0,69954.0,0.07076826]
[1773186245349,0.00045471,69962.0,69955.0,0.07147451]
[1773186246095,0.00045471,69962.0,69955.0,0.14224277]
[1773186246344,0.00045471,69962.0,69955.0,0.07147451]
[1773186246549,0.00045471,69962.0,69956.0,0.07076826]
[1773186247426,0.00045471,69962.0,69957.0,0.07147247]
[1773186247652,0.00045471,69962.0,69958.0,0.07076826]
[1773186249201,0.00045471,69962.0,69959.0,0.07076826]
[1773186250923,0.00045471,69962.0,69957.0,0.07147247]
[1773186251160,0.00045471,69962.0,69956.0,0.07147333]
[1773186251515,0.00045471,69962.0,69953.0,0.0002]
[1773186251720,0.07150633,69961.0,69950.0,0.07147953]
[1773186251919,0.00045471,69962.0,69951.0,0.07571193]
[1773186254674,0.00045471,69962.0,69945.0,0.0002]
[1773186254675,0.05451275,69961.0,69945.0,0.0002]
[1773186254879,0.07150633,69954.0,69931.0,0.07169802]
[1773186255093,0.13055014,69959.0,69931.0,0.07169802]
[1773186255094,0.07150633,69949.0,69931.0,0.07169802]
[1773186255496,0.07150633,69949.0,69931.0,0.14246628]
[1773186258066,0.14284354,69951.0,69932.0,0.07076826]
[1773186258372,0.07147815,69952.0,69951.0,0.0002]
[1773186258539,0.14298448,69952.0,69944.0,0.0002]
[1773186258719,0.14262684,69952.0,69944.0,0.0002]
[1773186258929,0.21554406,69953.0,69944.0,0.0002]
[1773186259120,0.14262684,69952.0,69944.0,0.0002]
[1773186259663,0.07291722,69953.0,69944.0,0.0002]
[1773186261215,0.001,69952.0,69944.0,0.0002]
[1773186261871,0.07291722,69953.0,69944.0,0.0002]
[1773186262238,0.07391722,69953.0,69944.0,0.0002]
[1773186262435,0.07291722,69953.0,69944.0,0.0002]
[1773186262640,0.14473035,69953.0,69944.0,0.0002]
[1773186262841,0.00244,69952.0,69937.0,0.07169202]
[1773186263047,0.07325313,69951.0,69937.0,0.07169202]
[1773186264280,0.07325313,69951.0,69937.0,0.0002]
[1773186265391,0.07325313,69951.0,69944.0,0.0002]
[1773186267714,0.07425313,69951.0,69944.0,0.0002]
[1773186270115,0.07425313,69951.0,69937.0,0.07169291]
[1773186271366,0.07325313,69951.0,69937.0,0.07169291]
[1773186273366,0.14473179,69951.0,69937.0,0.07169291]
[1773186273827,0.07209118,69950.0,69937.0,0.0002]
[1773186280745,0.07148014,69950.0,69937.0,0.0002]
[1773186280918,0.07136099,69949.0,69932.0,0.07149741]
[1773186281155,0.1139952,69949.0,69932.0,0.07149741]
[1773186281370,0.07125738,69948.0,69932.0,0.07149741]
[1773186282100,0.07148255,69948.0,69931.0,0.0002]
[1773186282324,0.07115518,69947.0,69931.0,0.0002]
[1773186282527,0.07148255,69948.0,69931.0,0.0002]
[1773186282528,0.07115518,69945.0,69931.0,0.0002]
[1773186284256,0.1425714,69945.0,69931.0,0.0002]
[1773186284615,0.21352023,69945.0,69931.0,0.0002]
[1773186285222,0.1425714,69944.0,69931.0,0.0002]
[1773186285469,0.07094883,69945.0,69931.0,0.0002]
[1773186288374,0.14243358,69945.0,69931.0,0.0002]
[1773186288579,0.21352023,69945.0,69931.0,0.0002]
[1773186288786,0.1425714,69944.0,69931.0,0.0002]
[1773186289283,0.28500498,69945.0,69931.0,0.0002]
[1773186289606,0.21352023,69945.0,69931.0,0.0002]
[1773186289902,0.1425714,69944.0,69931.0,0.0002]
[1773186290301,0.07094883,69945.0,69931.0,0.0002]
[1773186290539,0.07094883,69945.0,69912.0,0.07151848]
[1773186290685,0.07126883,69945.0,69924.0,0.07162752]
[1773186292059,0.07278515,69944.0,69931.0,0.0002]
[1773186292625,0.07310515,69944.0,69931.0,0.0002]
[1773186293647,0.07180584,69944.0,69931.0,0.0002]
[1773186294002,0.07180584,69944.0,69924.0,0.0002]
[1773186294003,0.07278515,69943.0,69924.0,0.0002]
[1773186294212,0.07278515,69942.0,69924.0,0.07170582]
[1773186294521,0.07278515,69941.0,69924.0,0.07170582]
[1773186294697,0.07278515,69939.0,69924.0,0.0002]
[1773186294902,0.2575666,69944.0,69924.0,0.0002]
[1773186294903,0.11660685,69950.0,69925.0,0.07162752]
[1773186295100,0.00039,69950.0,69930.0,0.07162752]
[1773186295766,0.00144,69950.0,69941.0,0.07162752]
[1773186296003,0.07278515,69960.0,69941.0,0.07162752]
[1773186296004,0.00022001,69961.0,69941.0,0.07162752]
[1773186296191,0.0001679,69970.0,69950.0,0.05454791]
[1773186296350,0.0001679,69970.0,69951.0,0.07162752]
[1773186296732,0.0001679,69970.0,69953.0,0.07162752]
[1773186296926,0.00144,69964.0,69953.0,0.07162752]
[1773186299226,0.00144,69964.0,69954.0,0.14310306]
[1773186300033,0.00022001,69957.0,69955.0,0.07162752]
[1773186300437,0.00022001,69957.0,69953.0,0.07147554]
[1773186300639,0.00022001,69957.0,69954.0,0.001]
[1773186300848,0.00022001,69957.0,69923.0,0.0002]
[1773186300849,0.07278515,69955.0,69923.0,0.0002]
[1773186301044,0.0733261,69955.0,69926.0,0.07150416]
[1773186301330,0.07278515,69953.0,69926.0,0.07150416]
[1773186301467,0.07278515,69953.0,69930.0,0.05454791]
[1773186301661,0.07201616,69955.0,69927.0,0.07162752]
[1773186301662,0.07278515,69951.0,69927.0,0.07162752]
[1773186301864,0.00144,69952.0,69910.0,0.05454791]
[1773186301865,0.07278515,69939.0,69910.0,0.05454791]
[1773186302067,0.07278515,69939.0,69900.0,0.49718119]
[1773186302068,0.12446733,69929.0,69902.0,0.0002666]
[1773186302284,0.12446733,69929.0,69896.0,0.00048]
[1773186302285,0.07278515,69919.0,69896.0,0.00048]
[1773186302650,0.07278515,69911.0,69900.0,0.05454791]
[1773186302789,0.00023,69925.0,69900.0,0.05454791]
[1773186302790,0.00144,69923.0,69900.0,0.05454791]
[1773186303135,0.07278515,69919.0,69895.0,0.07162752]
[1773186303292,0.07278515,69917.0,69900.0,9.058e-05]
[1773186303492,0.07278515,69917.0,69896.0,0.04708543]
[1773186303835,0.07278515,69917.0,69896.0,0.11882491]
[1773186304024,0.00144,69916.0,69896.0,0.11882491]
[1773186304255,0.07278515,69915.0,69896.0,0.11882491]
[1773186304930,0.07278515,69915.0,69897.0,0.07162752]
[1773186305284,0.07278515,69915.0,69898.0,0.0715328]
[1773186305729,0.07278515,69915.0,69898.0,0.14316032]
[1773186305951,0.07278515,69915.0,69899.0,0.07162752]
[1773186306697,0.07278515,69919.0,69899.0,0.07162752]
[1773186306832,0.00144,69918.0,69899.0,0.07162752]
[1773186307034,0.00144,69918.0,69902.0,0.07162752]
[1773186307437,0.00144,69918.0,69904.0,0.07162752]
[1773186309369,0.00144,69918.0,69905.0,0.07152564]
[1773186309569,0.00144,69918.0,69906.0,0.07162752]
[1773186310694,0.00144,69918.0,69902.0,0.07152768]
[1773186310695,0.07278515,69917.0,69900.0,0.07173054]
[1773186311092,0.07278515,69917.0,69901.0,0.07162752]
[1773186311314,0.00144,69916.0,69901.0,0.07162752]
[1773186311505,0.00144,69915.0,69903.0,0.07162752]
[1773186311841,0.07278515,69921.0,69903.0,0.07162752]
[1773186311842,0.00144,69914.0,69903.0,0.07162752]
[1773186312009,0.00023,69925.0,69903.0,0.07162752]
[1773186312010,0.00144,69916.0,69903.0,0.07162752]
[1773186312215,0.00023,69925.0,69903.0,0.07162752]
[1773186312388,0.00144,69924.0,69907.0,0.07162752]
[1773186312591,0.00144,69926.0,69909.0,0.07162752]
[1773186312791,0.07278515,69937.0,69909.0,0.07162752]
[1773186312995,0.00144,69934.0,69909.0,0.07162752]
[1773186313377,0.00144,69934.0,69910.0,0.07152052]
[1773186313581,0.27935815,69961.0,69921.0,0.07162752]
[1773186313582,0.00023,69950.0,69921.0,0.07162752]
[1773186313770,0.00023,69950.0,69931.0,0.07162752]
[1773186313771,0.00144,69949.0,69931.0,0.07162752]
[1773186314122,0.00144,69949.0,69931.0,0.07306752]
[1773186314336,0.07278515,69948.0,69931.0,0.07306752]
[1773186314670,0.00037311,69948.0,69931.0,0.07306752]
[1773186315502,0.00144,69947.0,69933.0,0.07162752]
[1773186315726,0.00562,69956.0,69933.0,0.07200063]
[1773186316138,0.00144,69953.0,69933.0,0.07200063]
[1773186316357,1e-08,69960.0,69941.0,0.07162752]
[1773186316572,1e-08,69960.0,69943.0,0.07162752]
[1773186316996,0.07278515,69958.0,69933.0,0.07400063]
[1773186317203,0.07278515,69958.0,69935.0,0.07162752]
[1773186317644,0.07278515,69957.0,69937.0,0.07162752]
[1773186317853,0.07278515,69957.0,69943.0,0.001]
[1773186318651,1e-08,69960.0,69943.0,0.07262752]
[1773186318855,0.07146984,69960.0,69943.0,0.07262752]
[1773186319051,0.001,69957.0,69943.0,0.07162752]
[1773186319248,1e-08,69960.0,69943.0,0.07162752]
[1773186319580,1e-08,69960.0,69945.0,0.07128673]
[1773186319800,0.00022001,69964.0,69945.0,0.07128673]
[1773186320018,0.00144,69961.0,69945.0,0.07128673]
[1773186320231,0.00022001,69964.0,69947.0,0.00048]
[1773186320232,0.00166001,69964.0,69947.0,0.00048]
[1773186320445,0.00166001,69964.0,69948.0,0.07272673]
[1773186321621,0.00166001,69964.0,69950.0,0.07128673]
[1773186321851,0.00166001,69964.0,69950.0,0.07077573]
[1773186323715,0.00022001,69972.0,69952.0,0.07128673]
[1773186325038,1e-08,69976.0,69961.0,0.12204297]
[1773186325208,0.00562,69984.0,69961.0,0.12204297]
[1773186325209,0.00144,69982.0,69962.0,0.07272673]
[1773186325586,0.00144,69982.0,69963.0,0.07146634]
[1773186325789,0.00562,69984.0,69964.0,0.07128673]
[1773186325995,0.07143074,69998.0,69964.0,0.07128673]
[1773186325996,0.00144,69987.0,69964.0,0.07128673]
[1773186326213,0.00011196,69987.0,69963.0,0.07146634]
[1773186326438,0.0127805,69997.0,69971.0,0.07128673]
[1773186326629,0.0127805,69997.0,69973.0,0.07128673]
[1773186326834,0.0127805,69997.0,69973.0,0.07113539]
[1773186327128,0.00144,69996.0,69973.0,0.07113539]
[1773186327323,0.07251705,69995.0,69973.0,0.07113539]
[1773186327772,0.00144,69996.0,69975.0,0.07113539]
[1773186328334,0.0127805,69997.0,69977.0,0.07128673]
[1773186328560,0.07141914,70010.0,69974.0,0.07145511]
[1773186328561,0.02825065,70007.0,69980.0,0.1637712]
[1773186328719,0.02825065,70007.0,69981.0,0.07128673]
[1773186328923,0.07251705,70006.0,69981.0,0.07128673]
[1773186329442,0.07251705,70006.0,69981.0,0.07088673]
[1773186329650,0.07251705,70006.0,69981.0,0.07232673]
[1773186330154,0.07251705,70006.0,69982.0,0.07144694]
[1773186330155,0.07251705,70004.0,69982.0,0.07144694]
[1773186330394,0.07251705,70002.0,69982.0,0.07144694]
[1773186330708,0.07251705,70002.0,69983.0,0.07128673]
[1773186330918,0.00022001,70006.0,69990.0,0.1637712]
[1773186331121,0.00022001,70006.0,69991.0,0.07128673]
[1773186331122,0.00144,70005.0,69991.0,0.07128673]
[1773186331322,0.07395705,70005.0,69991.0,0.07128673]
[1773186332736,0.00144,70004.0,69993.0,0.07128673]